[Event "Austrian Women Bundesliga 2023-24"]
[Site "Austria"]
[Date "2024.03.22"]
[Round "4.1"]
[White "Brunello, Marina"]
[Black "Unuk, Laura"]
[Result "1/2-1/2"]
[ECO "C55"]
[WhiteElo "2358"]
[BlackElo "2341"]
[Annotator "TA"]
[PlyCount "71"]
[EventDate "2023.11.21"]
[EventType "team-tourn"]
[EventCountry "AUT"]
[SourceTitle "playchess.com"]
[Source "ChessBase"]
[SourceQuality "1"]
[TimeControl "40/5400+30:1800+30"]

{[%evp 12,71,13,14,8,19,10,0,17,0,0,8,14,5,8,6,20,4,10,8,2,0,5,7,27,0,0,0,7,0,23,0,16,15,24,19,24,24,15,17,53,27,47,43,61,54,54,39,35,35,36,22,25,24,15,23,14,0,15,0,18,0]} 1. e4 {[%emt 0:00:04]} e5 {[%emt 0:00:35]} 2. Nf3 {[%emt 0:00:07]} Nc6 {[%emt 0:00:05]} 3. Bc4 {[%emt 0:00:03]} Nf6 {[%emt 0:00:20]} 4. d3 {[%emt 0:00:04]} Be7 {[%emt 0:00:15]} 5. c3 {[%emt 0:01:32]} O-O {[%emt 0:00:27]} 6. Bb3 {[%emt 0:00:31]} d5 {[%emt 0:13:34]} 7. Nbd2 {[%emt 0:03:23]} h6 {[%emt 0:14:53]} 8. O-O {[%emt 0:02:22]} Be6 {[%emt 0:03:04]} 9. Re1 {[%emt 0:16:59]} Bd6 {[%emt 0:18:04]} 10. Nf1 {[%emt 0:37:04]} dxe4 {[%emt 0:12:20]} 11. dxe4 {[%emt 0:00:13]} Bxb3 {[%emt 0:01:46]} 12. Qxb3 {[%emt 0:00:17]} Qc8 {[%emt 0:01:04]} 13. a4 {[%emt 0:06:46]} a5 {[%emt 0:04:22]} 14. N1d2 {[%emt 0:00:59]} Bc5 {[%emt 0:05:30]} 15. Qb5 {[%emt 0:00:58]} Ba7 {[%emt 0:03:21]} 16. h3 {[%emt 0:01:01]} Qe6 {[%emt 0:00:42]} 17. Nc4 {[%emt 0:02:26][%cal Oc1d2]} Nd7 {[%emt 0:08:08]} 18. Ne3 {[%emt 0:04:20]} (18. Nxa5 $2 {is the wrong capture.} Nxa5 19. Be3 Nc4 20. Bxa7 Rxa7 $19) 18... Bxe3 {[%emt 0:03:40]} 19. Bxe3 {[%emt 0:00:06][%cal Oa1d1]} b6 {[%emt 0:00:50]} 20. Nd2 {[%emt 0:08:50][%cal Bf3d2,Bd2b1,Bb1a3][%mdl 32]} Nf6 {[%emt 0:01:57][%cal Bd7f6,Bf6h5,Bh5f4][%mdl 32]} 21. f3 {[%emt 0:00:27]} Rfd8 {[%emt 0:00:33]} 22. Qc4 {[%emt 0:00:56]} Qe8 {[%emt 0:02:43]} 23. Rad1 {[%emt 0:04:01]} Nh5 {[%emt 0:00:40]} 24. Nb1 {[%emt 0:01:16]} Nf4 {[%emt 0:01:34]} 25. Na3 {[%emt 0:01:58]} Ne6 {[%emt 0:01:54]} 26. Rd5 {[%emt 0:00:20]} Kh7 {[%emt 0:00:33]} 27. Qb3 {[%emt 0:04:03]} Rac8 {[%emt 0:00:10]} 28. Red1 {[%emt 0:00:31] White has more active pieces.} f6 {[%emt 0:00:43]} 29. R1d2 {[%emt 0:01:59]} Ne7 {[%emt 0:00:40]} 30. Rxd8 {[%emt 0:00:11]} Nxd8 {[%emt 0:00:03]} 31. Nb5 {[%emt 0:00:15]} Ng6 {[%emt 0:00:48]} 32. Qd1 {[%emt 0:00:31][%cal Ob5c7] [#] And now Nxc7! would win.} Ne6 {[%emt 0:00:34]} 33. Rd7 {[%emt 0:00:53]} Ngf8 {[%emt 0:00:30]} 34. Rd2 {The position is equal.} Ng6 {[%emt 0:00:26]} 35. Rd7 {[%emt 0:01:55]} Ngf8 {[%emt 0:00:05]} 36. Rd2 {Weighted Error Value: White=0.08 (flawless) /Black=0.07 (flawless) .  Inaccurate:     	White=2     	Black=1      OK:         	White=8     	Black=12} 1/2-1/2

[Event "Austrian Women Bundesliga 2023-24"]
[Site "Austria"]
[Date "2024.03.22"]
[Round "4.2"]
[White "Hrescak, Ivana"]
[Black "Gueci, Tea"]
[Result "0-1"]
[ECO "A06"]
[WhiteElo "2089"]
[BlackElo "2193"]
[Annotator "RC"]
[PlyCount "66"]
[EventDate "2023.11.21"]
[EventType "team-tourn"]
[EventCountry "AUT"]
[SourceTitle "playchess.com"]
[Source "ChessBase"]
[SourceQuality "1"]
[TimeControl "40/5400+30:1800+30"]

1. Nf3 {[%emt 0:00:06]} d5 {[%emt 0:00:04]} 2. g3 {[%emt 0:00:39]} Nc6 {[%emt 0:00:05]} 3. d4 {[%emt 0:02:32]} Bf5 {[%emt 0:00:04]} 4. a3 {[%emt 0:01:20]} e6 {[%emt 0:01:22]} 5. Bg2 {[%emt 0:02:31]} Be7 {[%emt 0:00:34]} 6. O-O {[%emt 0:03:45]} h6 {[%emt 0:01:44]} 7. Re1 {[%emt 0:07:02]} Nf6 {[%emt 0:01:12]} 8. c4 {[%emt 0:04:28]} O-O {[%emt 0:05:47]} 9. Qa4 {[%emt 0:12:07]} Ne4 {[%emt 0:06:18]} 10. Bf4 {[%emt 0:07:49]} g5 {[%emt 0:05:56]} 11. cxd5 {[%emt 0:06:43]} exd5 {[%emt 0:02:33]} 12. Be3 {[%emt 0:00:44]} Be6 {[%emt 0:05:58]} 13. Ne5 {[%emt 0:04:44]} Nxe5 {[%emt 0:02:29]} 14. dxe5 {[%emt 0:00:07]} Nc5 {[%emt 0:01:15]} 15. Bxc5 {[%emt 0:02:25]} Bxc5 {[%emt 0:00:08]} 16. e3 {[%emt 0:01:41]} c6 {[%emt 0:03:56]} 17. Nd2 {[%emt 0:05:57]} Re8 {[%emt 0:06:11]} 18. Nf3 {[%emt 0:08:05]} Bf8 {[%emt 0:03:07]} 19. Nd4 {[%emt 0:03:23]} Bd7 {[%emt 0:02:00]} 20. Qb3 {[%emt 0:03:35]} Qb6 {[%emt 0:07:57]} 21. Qxb6 {[%emt 0:04:33]} axb6 {[%emt 0:00:05]} 22. f4 {[%emt 0:00:08]} Bg7 {[%emt 0:04:13]} 23. Rad1 {[%emt 0:02:24]} Rad8 {[%emt 0:10:36]} 24. a4 {[%emt 0:03:44]} f6 {[%emt 0:02:00]} 25. exf6 {[%emt 0:00:49]} Bxf6 {[%emt 0:00:15]} 26. Kf2 {[%emt 0:02:16]} Kg7 {[%emt 0:02:32]} 27. b3 {[%emt 0:01:28]} Re7 {[%emt 0:03:56]} 28. Bf3 {[%emt 0:06:37]} Rde8 {[%emt 0:05:06]} 29. Bh5 {[%emt 0:00:04]} Ra8 {[%emt 0:02:14]} 30. Be2 {[%emt 0:00:44]} gxf4 {[%emt 0:04:19]} 31. exf4 {[%emt 0:00:11]} Rae8 {[%emt 0:00:26]} 32. Nf3 {[%emt 0:02:01]} Bc3 {[%emt 0:00:54]} 33. Nd2 {[%emt 0:00:01]} Bd4+ {[%emt 0:00:28]} 0-1

[Event "Austrian Women Bundesliga 2023-24"]
[Site "Austria"]
[Date "2024.03.22"]
[Round "4.3"]
[White "Khrapko, Marharyta"]
[Black "Vidic, Teja"]
[Result "1/2-1/2"]
[ECO "C70"]
[WhiteElo "2218"]
[BlackElo "2125"]
[Annotator "RC"]
[PlyCount "45"]
[EventDate "2023.11.21"]
[EventType "team-tourn"]
[EventCountry "AUT"]
[SourceTitle "playchess.com"]
[Source "ChessBase"]
[SourceQuality "1"]
[TimeControl "40/5400+30:1800+30"]

1. e4 {[%emt 0:00:01]} e5 {[%emt 0:00:05]} 2. Nf3 {[%emt 0:00:03]} Nc6 {[%emt 0:00:05]} 3. Bb5 {[%emt 0:00:03]} a6 {[%emt 0:00:05]} 4. Ba4 {[%emt 0:00:01]} Bc5 5. O-O {[%emt 0:00:18]} Nge7 {[%emt 0:00:16]} 6. c3 {[%emt 0:00:10]} Ng6 {[%emt 0:00:15]} 7. d4 {[%emt 0:00:40]} Ba7 {[%emt 0:00:05]} 8. Bg5 {[%emt 0:11:44]} f6 {[%emt 0:00:06]} 9. Be3 {[%emt 0:00:06]} O-O {[%emt 0:00:05]} 10. d5 {[%emt 0:11:30]} Nce7 {[%emt 0:01:55]} 11. d6 {[%emt 0:01:45]} cxd6 {[%emt 0:00:22]} 12. Qxd6 {[%emt 0:03:14]} Bxe3 {[%emt 0:13:47]} 13. fxe3 {[%emt 0:00:03]} b5 {[%emt 0:00:12]} 14. Bb3+ {[%emt 0:04:43]} Kh8 {[%emt 0:00:06]} 15. h4 {[%emt 0:02:15]} Bb7 {[%emt 0:11:20]} 16. h5 {[%emt 0:06:50]} Nc8 {[%emt 0:00:13]} 17. Qd3 {[%emt 0:06:31]} Nge7 {[%emt 0:00:23]} 18. Nbd2 {[%emt 0:02:04]} Nb6 {[%emt 0:10:15]} 19. Qd6 {[%emt 0:32:35]} Nbc8 {[%emt 0:02:53]} 20. Qd3 {[%emt 0:00:03]} Nb6 {[%emt 0:00:06]} 21. Qd6 {[%emt 0:04:56]} Nbc8 {[%emt 0:04:45]} 22. Qd3 {[%emt 0:00:19]} Nb6 {[%emt 0:00:38]} 23. Qd6 {[%emt 0:00:30]} 1/2-1/2

[Event "Austrian Women Bundesliga 2023-24"]
[Site "Austria"]
[Date "2024.03.22"]
[Round "4.4"]
[White "Kolba, Anastasiya"]
[Black "Stangl, Anita"]
[Result "1-0"]
[ECO "D36"]
[WhiteElo "2031"]
[BlackElo "2070"]
[Annotator "RC"]
[PlyCount "61"]
[EventDate "2023.11.21"]
[EventType "team-tourn"]
[EventCountry "AUT"]
[SourceTitle "playchess.com"]
[Source "ChessBase"]
[SourceQuality "1"]
[TimeControl "40/5400+30:1800+30"]

1. d4 {[%emt 0:00:40]} e6 {[%emt 0:00:00]} 2. c4 {[%emt 0:00:25]} d5 {[%emt 0:00:00]} 3. Nc3 {[%emt 0:00:28]} c6 {[%emt 0:01:16]} 4. cxd5 {[%emt 0:01:18]} exd5 {[%emt 0:00:48]} 5. Qc2 {[%emt 0:03:18]} Nf6 {[%emt 0:03:55]} 6. Bg5 {[%emt 0:01:01]} Be7 {[%emt 0:00:48]} 7. e3 {[%emt 0:00:25]} O-O {[%emt 0:02:20]} 8. Bd3 {[%emt 0:00:43]} h6 {[%emt 0:00:11]} 9. Bh4 {[%emt 0:02:27]} b6 {[%emt 0:05:42]} 10. Nf3 {[%emt 0:01:25]} Ba6 {[%emt 0:19:25]} 11. Ne5 {[%emt 0:04:13]} Bxd3 {[%emt 0:03:33]} 12. Qxd3 {[%emt 0:01:26]} Nfd7 {[%emt 0:03:32]} 13. Bxe7 {[%emt 0:02:33]} Qxe7 {[%emt 0:00:12]} 14. f4 {[%emt 0:10:13]} Nxe5 {[%emt 0:01:36]} 15. dxe5 {[%emt 0:00:38]} Nd7 {[%emt 0:00:45]} 16. O-O {[%emt 0:01:42]} f6 {[%emt 0:02:59]} 17. Rad1 {[%emt 0:14:15]} Nc5 {[%emt 0:02:25]} 18. Qg6 {[%emt 0:01:37]} Rac8 {[%emt 0:03:33]} 19. b4 {[%emt 0:01:53]} Nd7 {[%emt 0:01:49]} 20. b5 {[%emt 0:02:30]} Qc5 {[%emt 0:14:26]} 21. Rd3 {[%emt 0:17:41]} Qc4 {[%emt 0:18:57]} 22. Rc1 {[%emt 0:00:38]} Rfe8 {[%emt 0:03:06]} 23. Rdd1 {[%emt 0:07:09]} fxe5 {[%emt 0:04:34]} 24. Nxd5 {[%emt 0:02:33]} Qxb5 {[%emt 0:01:16]} 25. Nc7 {[%emt 0:00:58]} Nf8 {[%emt 0:01:27]} 26. Qxe8 {[%emt 0:01:53]} Rxc7 {[%emt 0:00:36]} 27. fxe5 {[%emt 0:02:11]} Qb4 {[%emt 0:01:38]} 28. Rf1 {[%emt 0:01:02]} Qa3 {[%emt 0:01:19]} 29. Rcd1 {[%emt 0:01:57]} Qxe3+ {[%emt 0:01:14]} 30. Kh1 {[%emt 0:00:09]} Qe2 {[%emt 0:01:04]} 31. Rxf8+ {[%emt 0:00:34]} 1-0

[Event "Austrian Women Bundesliga 2023-24"]
[Site "Austria"]
[Date "2024.03.22"]
[Round "4.5"]
[White "Danielian, Elina"]
[Black "Mihelic, Vesna"]
[Result "1-0"]
[ECO "A06"]
[WhiteElo "2396"]
[BlackElo "2140"]
[Annotator "TA"]
[PlyCount "63"]
[EventDate "2023.11.21"]
[EventType "team-tourn"]
[EventCountry "AUT"]
[SourceTitle "playchess.com"]
[Source "ChessBase"]
[SourceQuality "1"]
[TimeControl "40/5400+30:1800+30"]

{[%evp 10,63,15,0,0,0,0,-7,0,0,-8,-52,-32,-42,-37,-37,-29,-37,-28,-50,0,0,65,29,17,6,110,33,20,8,175,162,208,222,223,221,191,0,8,5,287,287,2836,1035,2652,2510,29990,29991,29991,29992,29992,29993,29993,29994,29994,440]} 1. Nf3 {[%emt 0:00:05]} d5 {[%emt 0:00:08]} 2. e3 {[%emt 0:01:48]} Nf6 {[%emt 0:01:19]} 3. c4 {[%emt 0:00:05]} e6 {[%emt 0:00:27]} 4. b3 {[%emt 0:00:11]} Be7 {[%emt 0:00:57]} 5. Bb2 {[%emt 0:00:07]} O-O {[%emt 0:00:22]} 6. Be2 {[%emt 0:03:16]} b6 {[%emt 0:01:09]} 7. Nc3 {[%emt 0:00:47]} Bb7 {[%emt 0:03:00]} 8. Qc2 {[%emt 0:00:45]} Nbd7 {[%emt 0:04:55] Die Stellung ist ausgeglichen.} 9. d3 {[%emt 0:14:41]} c5 {[%emt 0:04:39]} 10. Rg1 {[%emt 0:02:45]} Ne8 {[%emt 0:23:10][%cal Bf6e8,Be8d6,Bd6f5][%mdl 32]} 11. g4 {[%emt 0:01:47]} Nd6 {[%emt 0:01:51]} 12. g5 {[%emt 0:04:07]} Nf5 {[%emt 0:10:55]} 13. cxd5 {[%emt 0:10:49]} exd5 {[%emt 0:00:07]} 14. d4 {[%emt 0:00:45]} g6 {[%emt 0:03:42]} (14... cxd4 $15 15. Qxf5 dxc3 16. Bxc3 g6) 15. dxc5 {[%emt 0:05:25][%cal Oc3d5] Nxd5! wäre nun fies.} Bxc5 {[%emt 0:03:53]} (15... Rc8 $11) 16. O-O-O {[%emt 0:04:20]} Rc8 {[%emt 0:03:55]} 17. Kb1 {[%emt 0:00:07][%cal Oc2d3] Schwarz muss nun Qd3! beachten.} (17. Nxd5 $2 Bxe3+ 18. Nxe3 Nxe3 (18... Rxc2+ $2 19. Nxc2 Qc7 20. Kb1 $19) 19. fxe3 Rxc2+ 20. Kxc2 Be4+ 21. Kd2 b5 $19) 17... Qe7 {[%emt 0:17:56]} (17... Bb4 $11 {bleibt in der Remisbreite.}) 18. Qd3 {[%emt 0:06:07]} ({Besser ist} 18. Nxd5 $16 Bxd5 19. Rxd5) 18... d4 $1 $14 {[%emt 0:02:58]} 19. Nxd4 {[%emt 0:11:59]} Bxd4 {[%emt 0:05:42]} (19... Nxd4 $11 {und Schwarz steht sicher.} 20. exd4 Bb4) 20. exd4 $18 {[%emt 0:00:04][%cal Be3d4,Bd4d5][%mdl 32]} Rxc3 {[%emt 0:00:24]} (20... Rfd8 {war nötig.}) 21. Qxc3 {[%emt 0:00:03][%cal Od4d5] Zielt auf d5! ab.} (21. Bxc3 $2 Be4 22. Bb2 Re8 $19 (22... Bxd3+ $2 23. Bxd3 Re8 24. h3 $19)) 21... Qxe2 {[%emt 0:00:09]} 22. d5 {[%emt 0:01:22]} f6 {[%emt 0:00:12] [#]} (22... Qxf2 23. Qh8#) 23. Rge1 $2 {[%emt 0:10:36]} (23. gxf6 $1 $18 {Und Rde1 würde nun gewinnen.} Rc8 (23... Nxf6 $2 24. Rge1 $18) 24. Qh3) 23... Qxf2 {[%emt 0:02:35]} 24. Qc7 $40 {[%emt 0:04:02][%csl LRb7,LRd7][%mdl 128] Schwarz muss sich nun genau verteidigen.} Nc5 {[%emt 0:03:30][%mdl 8192]} (24... Ne3 $1 $11 {und Schwarz ist OK.} 25. Rxe3 (25. Qxb7 {führt zum Matt.} Qf5+) (25. Qxd7 $2 Bc8 $19) 25... Qxe3 (25... Rc8 26. Re8+ Rxe8 27. Qxd7 $16) 26. Qxd7 (26. Qxb7 Nc5 $11) 26... Qe2) 25. gxf6 {[%emt 0:00:19][%cal Bg5f6,Bf6f7][%mdl 32]} ({Schlechter ist} 25. Bxf6 Ba6 (25... Bxd5 $2 26. Bc3 $18) 26. Qe5 Nd3 27. Qe6+ Rf7 $11) 25... Rc8 $2 {[%emt 0:04:33]} (25... Bxd5 26. f7+ Bxf7) 26. f7+ {[%emt 0:05:15]} Kf8 {[%emt 0:00:01]} 27. Qe5 {[%emt 0:00:22] [#] jetzt Qe8+ und aus.} Kxf7 {[%emt 0:00:57]} 28. Qf6+ {[%emt 0:00:19] Weiß setzt Matt.} Kg8 {[%emt 0:00:02]} 29. Qh8+ {[%emt 0:00:21]} Kf7 {[%emt 0:00:02]} 30. Qxh7+ {[%emt 0:00:06]} Kf8 {[%emt 0:00:09]} 31. Qh8+ {[%emt 0:00:03]} Kf7 {[%emt 0:00:09]} 32. Qf6+ {[%emt 0:00:02] Gewichteter Fehlerwert: Weiß=0.21 (präzise) /Schwarz=0.70.  Verlustzug:     	---       	Schwarz=2     Gewinn verpasst:   	Weiß=1     	---        Fehler:       	Weiß=1     	Schwarz=5     Ungenau:       	Weiß=2     	Schwarz=1     OK:         	Weiß=6     	Schwarz=2     Bester:       	Weiß=3     	Schwarz=2     Stark:        	---       	Schwarz=1} 1-0

[Event "Austrian Women Bundesliga 2023-24"]
[Site "Austria"]
[Date "2024.03.22"]
[Round "4.6"]
[White "Goeschl, Ortrun"]
[Black "Osmak, Yuliia"]
[Result "0-1"]
[ECO "A00"]
[WhiteElo "1952"]
[BlackElo "2452"]
[Annotator "TA"]
[PlyCount "90"]
[EventDate "2023.11.21"]
[EventType "team-tourn"]
[EventCountry "AUT"]
[SourceTitle "playchess.com"]
[Source "ChessBase"]
[SourceQuality "1"]
[TimeControl "40/5400+30:1800+30"]

{[%evp 9,90,-35,-42,-37,-41,-46,-35,-43,-38,-35,0,-16,0,-36,-37,-68,-89,-77,-83,-83,-79,-158,-157,-162,-153,-158,-139,-169,-155,-157,-169,-195,-173,-202,-196,-242,-248,-237,-235,-271,-266,-286,-231,-305,-308,-300,-277,-284,-270,-329,-307,-322,-336,-343,-328,-477,-351,-472,-343,-312,-339,-337,-306,-395,-383,-552,-390,-378,-361,-467,-365,-595,-592,-611,-600,-911,-573,-5381,-2219,-29989,-29990,-29993,-29994]} 1. Nc3 {[%emt 0:00:06]} c5 {[%emt 0:00:09]} 2. Nf3 {[%emt 0:00:22]} Nf6 {[%emt 0:02:22]} 3. d4 {[%emt 0:00:20]} cxd4 {[%emt 0:00:10]} 4. Nxd4 {[%emt 0:00:06]} d5 {[%emt 0:00:40]} 5. Bf4 {[%emt 0:01:53]} Nbd7 {[%emt 0:15:22] ...e5 wäre nun fies.} 6. Nf3 {[%emt 0:06:24]} e6 {[%emt 0:00:57]} 7. e3 {[%emt 0:00:20]} Bb4 {[%emt 0:00:25]} 8. Bd3 {[%emt 0:03:03] Schwarz steht etwas besser.} O-O {[%emt 0:00:59]} 9. O-O {[%emt 0:00:28]} Nc5 {[%emt 0:09:19]} 10. Ne2 {[%emt 0:05:00]} Bd7 {[%emt 0:03:19]} 11. Bxh7+ {[%emt 0:05:16]} Nxh7 {[%emt 0:00:48]} 12. c3 {[%emt 0:01:05]} Ba5 {[%emt 0:01:29] Und ...Bb6 würde nun gewinnen. Schwarz hat alles unter Kontrolle.} 13. b4 {[%emt 0:00:10]} Ba4 {[%emt 0:02:03]} (13... Rc8 {vereinfacht} 14. bxc5 Rxc5 15. Be5 Bb5) 14. Qb1 {[%emt 0:05:53]} Bb5 {[%emt 0:05:26]} 15. Nfd4 {[%emt 0:01:06] [#]} (15. Qc2 $142) 15... Bxe2 $1 $17 {[%emt 0:01:44]} 16. Nxe2 {[%emt 0:00:26] [#]} Ne4 {[%emt 0:00:13]} 17. bxa5 {[%emt 0:01:12]} Nd2 $36 {[%emt 0:00:07][%mdl 2048] Schwarz hat starke Initiative.} ({Und nicht} 17... Qxa5 18. Qxb7 Rfc8 19. Nd4 Qxc3 20. h3 $11) 18. Qxb7 {[%emt 0:08:33][%cal Oe2d4]} Nxf1 {[%emt 0:00:15]} 19. Rxf1 {[%emt 0:00:25]} Qxa5 20. Qb2 {[%emt 0:23:21]} Rfc8 {[%emt 0:01:54]} 21. Rb1 {[%emt 0:03:58]} Nf6 {[%emt 0:01:52]} 22. f3 {[%emt 0:00:45]} (22. Be5 $142) 22... Nd7 $19 {[%emt 0:01:11]} 23. Qc2 {[%emt 0:05:41]} Nb6 {[%emt 0:04:27]} 24. Kf2 {[%emt 0:06:04]} Rc4 {[%emt 0:01:39]} 25. Bd6 {[%emt 0:02:07]} Rac8 {[%emt 0:01:19]} 26. a3 {[%emt 0:01:06]} Qa4 {[%emt 0:04:09]} 27. Qd3 {[%emt 0:06:26]} Qc6 {[%emt 0:01:28]} 28. Bb4 {[%emt 0:01:41]} Nd7 {[%emt 0:05:30]} 29. Qd1 {[%emt 0:04:18]} Qc7 {[%emt 0:01:00][%cal Oa7a5]} 30. Qa4 {[%emt 0:01:35]} Nc5 {[%emt 0:03:04]} 31. Qc2 {[%emt 0:01:33]} Qxh2 {[%emt 0:02:39]} 32. Nf4 {[%emt 0:03:32]} (32. Bxc5 $142 R8xc5 33. Rb7) 32... Qh7 {[%emt 0:01:47]} 33. Qd1 {[%emt 0:00:27]} Qf5 {[%emt 0:05:59]} 34. Bxc5 {[%emt 0:00:56]} R4xc5 {[%emt 0:00:28]} 35. Ne2 {[%emt 0:00:20]} Qf6 {[%emt 0:00:41]} 36. g3 {[%emt 0:00:18]} Qh6 {[%emt 0:01:31]} 37. Qg1 {[%emt 0:00:14] Pariert Qh2+.} (37. Qd3 $142) 37... Qh7 {[%emt 0:00:33]} 38. Rb2 {[%emt 0:00:44]} R5c6 {[%emt 0:00:42]} 39. Kg2 {[%emt 0:00:52]} Rb6 {[%emt 0:00:22]} 40. Qc1 {[%emt 0:00:22]} (40. Rxb6 axb6 41. Qc1) 40... Rcb8 {[%emt 0:00:44]} 41. Rb4 {[%emt 0:31:29]} a5 {[%emt 0:31:15]} 42. Rh4 {[%emt 0:00:02]} Qb1 {[%emt 0:01:12]} 43. Ra4 {[%emt 0:00:00]} Qd3 {[%emt 0:00:00]} 44. Nf4 {[%emt 0:00:00]} Rb2+ {[%emt 0:00:00]} 45. Kg1 {[%emt 0:00:00]} Qh7 {[%emt 0:00:00] Gewichteter Fehlerwert: Weiß=0.73/Schwarz=0.35.  Fehler:       	Weiß=5     	---        Ungenau:       	Weiß=6     	---        OK:         	Weiß=10    	Schwarz=19    Bester:       	Weiß=1     	Schwarz=2     Stark:        	---       	Schwarz=1} 0-1

[Event "Austrian Women Bundesliga 2023-24"]
[Site "Austria"]
[Date "2024.03.22"]
[Round "4.7"]
[White "Ushenina, Anna"]
[Black "Tscharnuter, Alexandra"]
[Result "1-0"]
[ECO "E12"]
[WhiteElo "2415"]
[BlackElo "1842"]
[Annotator "TA"]
[PlyCount "71"]
[EventDate "2023.11.21"]
[EventType "team-tourn"]
[EventCountry "AUT"]
[SourceTitle "playchess.com"]
[Source "ChessBase"]
[SourceQuality "1"]
[TimeControl "40/5400+30:1800+30"]

{[%evp 13,71,0,44,31,47,41,64,62,61,56,52,48,47,37,58,36,52,16,15,0,0,0,56,0,0,0,0,0,0,-35,-40,-39,13,10,18,23,43,32,38,0,321,300,29985,29986,29984,29985,29987,29988,29992,29990,29993,29994,29994,29994,29994,29995,29995,29995,29996,29997]} 1. d4 {[%emt 0:00:13]} Nf6 {[%emt 0:00:12]} 2. Nf3 {[%emt 0:01:10]} e6 {[%emt 0:00:29]} 3. c4 {[%emt 0:00:42]} b6 {[%emt 0:00:21]} 4. a3 {[%emt 0:02:10]} Be7 {[%emt 0:02:26]} 5. Nc3 {[%emt 0:00:34]} Bb7 {[%emt 0:00:51]} 6. d5 {[%emt 0:00:42]} O-O {[%emt 0:06:07]} 7. g3 {[%emt 0:04:03]} d6 {[%emt 0:02:30]} 8. Bg2 {[%emt 0:01:38]} e5 {[%emt 0:03:00]} 9. O-O {[%emt 0:00:25]} Nbd7 {[%emt 0:01:20]} 10. b4 {[%emt 0:04:12] White is slightly better.} c6 {[%emt 0:04:03]} 11. dxc6 {[%emt 0:11:54] White is more active.} Bxc6 {[%emt 0:00:32]} 12. Qb3 {[%emt 0:00:28]} Rc8 {[%emt 0:03:26]} 13. Bb2 {[%emt 0:01:24]} Ne4 {[%emt 0:11:55]} 14. Nd5 {[%emt 0:37:11]} (14. Nd4 $5 exd4 15. Nxe4 $11) 14... Ndf6 {[%emt 0:11:30]} 15. Rfd1 {[%emt 0:05:17]} Qe8 {[%emt 0:05:30] aiming for ...Nxd5.} 16. a4 {[%emt 0:09:38]} Bxd5 {[%emt 0:16:31]} 17. cxd5 {[%emt 0:00:14]} Qd7 {[%emt 0:00:51] Prevents Bh3} (17... Ng4 $11) 18. h3 {[%emt 0:09:38]} (18. Ne1 $14) 18... a5 $11 {[%emt 0:05:41]} 19. Nd2 {[%emt 0:04:03]} Qf5 {[%emt 0:05:51]} 20. Nxe4 {[%emt 0:00:33]} Nxe4 {[%emt 0:00:06]} 21. Qd3 {[%emt 0:00:23]} (21. Qf3 {simplifies} Qxf3 22. Bxf3 Nc3 23. Bxc3 Rxc3 24. bxa5 bxa5 25. Rab1) 21... Qxf2+ {[%emt 0:00:31]} 22. Kh2 {[%emt 0:00:04] [#]} Nxg3 {[%emt 0:02:23]} 23. Qxg3 {[%emt 0:00:50]} Qxe2 {[%emt 0:00:04]} 24. Bc3 $40 {[%emt 0:02:01][%cal Bb2c3,Bc3b4,Bb4d6][%mdl 160] White is up to no good.} axb4 {[%emt 0:00:51]} 25. Bxb4 {[%emt 0:01:08]} Rc2 {[%emt 0:00:57]} 26. Rac1 {[%emt 0:00:20]} Rfc8 $2 {[%emt 0:00:37][%mdl 8192]} (26... f5 $11 {and Black is okay.} 27. Rxc2 Qxc2) 27. Rd2 $1 $18 {[%emt 0:00:35]} Rxd2 {[%emt 0:06:45]} (27... Qxd2 $18 28. Bxd2 Rxc1 29. Bxc1 Rxc1) 28. Rxc8+ {[%emt 0:00:05] White mates.} Bf8 {[%emt 0:00:02]} 29. Bxd6 {[%emt 0:00:46][%csl Gd6][%cal Rc8f8]} h6 {[%emt 0:00:28]} 30. Bxf8 {[%emt 0:00:14][%csl Gf8][%cal Rg3g7]} g6 {[%emt 0:00:34]} 31. Bxh6+ {[%emt 0:00:16]} Kh7 {[%emt 0:00:06]} 32. Bxd2 {[%emt 0:00:14]} Qxd2 {[%emt 0:00:19]} 33. Qh4+ {[%emt 0:00:03]} Qh6 {[%emt 0:00:39] [#]} 34. Rh8+ $3 {[%emt 0:00:05]} Kxh8 {[%emt 0:00:54]} 35. Qxh6+ {[%emt 0:00:04]} Kg8 {[%emt 0:00:05]} 36. d6 {[%emt 0:00:04] Weighted Error Value: White=0.11 (very precise) /Black=0.49.  Loses game:     	---       	Black=1      Mistake:       	White=1     	Black=3      Inaccurate:     	White=3     	---        OK:         	White=4     	Black=7      Best:        	White=2     	Black=2      Strong:       	White=1     	---} 1-0